{"text_format":"3","workbook":"xlsx","n_sheets":3,"sheets":["Mediciones y presupuesto","resumen de presupuesto","Estilos"],"not_rendered":{"images":1,"defined_names":4},"read":"whole","date_system":"1900"}

{"sheet":"Mediciones y presupuesto","index":0,"n_rows":478,"n_cols":12,"rows_kept":478,"merged":[[1,1,3,1],[1,2,3,3],[3,4,3,9],[5,1,5,9],[13,3,13,7],[14,3,14,8],[18,3,18,8],[21,3,21,7],[22,3,22,8],[28,3,28,8],[31,3,31,7],[32,3,32,8],[38,3,38,8],[41,3,41,7],[42,3,42,8],[46,3,46,7],[47,3,47,8],[52,3,52,8],[55,3,55,7],[56,3,56,8],[60,3,60,7],[61,3,61,8],[68,3,68,8],[70,3,70,8],[75,3,75,7],[76,3,76,8],[81,3,81,7],[82,3,82,8],[86,3,86,7],[87,3,87,8],[91,3,91,8],[93,3,93,8],[99,3,99,7],[100,3,100,8],[104,3,104,8],[107,3,107,7],[108,3,108,8],[112,3,112,7],[113,3,113,8],[117,3,117,8],[120,3,120,7],[121,3,121,8],[125,3,125,8],[128,3,128,7],[129,3,129,8],[133,3,133,7],[134,3,134,8],[138,3,138,8],[141,3,141,7],[142,3,142,8],[146,3,146,8],[149,3,149,7],[150,3,150,8],[155,3,155,7],[156,3,156,8],[160,3,160,8],[163,3,163,7],[164,3,164,8],[168,3,168,8],[171,3,171,7],[172,3,172,8],[176,3,176,7],[177,3,177,8],[181,3,181,8],[183,3,183,8],[187,3,187,7],[188,3,188,8],[192,3,192,8],[195,3,195,7],[196,3,196,8],[200,3,200,7],[201,3,201,8],[205,3,205,8],[207,3,207,8],[211,3,211,7],[212,3,212,8],[216,3,216,8],[218,3,218,8],[220,3,220,8],[224,3,224,7],[225,3,225,8],[229,3,229,7],[230,3,230,8],[234,3,234,7],[235,3,235,8],[239,3,239,7],[240,3,240,8],[244,3,244,7],[245,3,245,8],[249,3,249,8],[254,3,254,7],[255,3,255,8],[259,3,259,8],[262,3,262,7],[263,3,263,8],[267,3,267,8],[269,3,269,8],[273,3,273,7],[274,3,274,8],[278,3,278,7],[279,3,279,8],[283,3,283,7],[284,3,284,8],[289,3,289,7],[290,3,290,8],[294,3,294,7],[295,3,295,8],[299,3,299,7],[300,3,300,8],[304,3,304,7],[305,3,305,8],[309,3,309,7],[310,3,310,8],[314,3,314,7],[315,3,315,8],[319,3,319,8],[323,3,323,7],[324,3,324,8],[328,3,328,7],[329,3,329,8],[333,3,333,7],[334,3,334,8],[338,3,338,7],[339,3,339,8],[343,3,343,7],[344,3,344,8],[348,3,348,7],[349,3,349,8],[353,3,353,7],[354,3,354,8],[358,3,358,7],[359,3,359,8],[363,3,363,7],[364,3,364,8],[368,3,368,7],[369,3,369,8],[373,3,373,7],[374,3,374,8],[378,3,378,7],[379,3,379,8],[383,3,383,8],[387,3,387,7],[388,3,388,8],[392,3,392,7],[393,3,393,8],[397,3,397,7],[398,3,398,8],[402,3,402,7],[403,3,403,8],[407,3,407,7],[408,3,408,8],[412,3,412,7],[413,3,413,8],[417,3,417,7],[418,3,418,8],[422,3,422,7],[423,3,423,8],[427,3,427,7],[428,3,428,8],[432,3,432,7],[433,3,433,8],[437,3,437,7],[438,3,438,8],[442,3,442,7],[443,3,443,8],[447,3,447,7],[448,3,448,8],[452,3,452,7],[453,3,453,8],[457,3,457,7],[458,3,458,8],[462,3,462,7],[463,3,463,8],[467,3,467,7],[468,3,468,8],[472,3,472,8]]}
[]
[]
[]
[{"$nulls":4},"MEDICIONES Y PRESUPUESTO"]
[null,"BOLIBAR IRTEERA HODI ETA SEKTORIALA BERR"]
[]
[null,"CÓDIGO",null,"DESCRIPCIÓN","UDS.","LONG.","ALTURA","ANCHURA","PARCIALES","CANT.","PRECIO","IMPORTE"]
[]
[]
[]
[{"$nulls":3},"MOVIMIENTO DE TIERRAS Y DEMOLICIONES"]
[]
[{"$nulls":3},"DEMOLICIONES"]
[null,"DEM_H_MMAN",null,"M3 DEMOL HGÓN MEDIOS MANUALES"]
[{"$nulls":3},"Demolición de hormigón con medios manuales, de cualquier tipo, dimensión y profundidad, incluso carga y transporte de productos sobrantes a vertedero y canon de vertido.\r\n"]
[{"$nulls":3},"Camara de llaves",{"v":1,"d":"1.00"},{"v":18,"d":"18.00"},0.65,null,{"v":11.7,"d":"11.70"}]
[{"$nulls":9},{"v":11.7,"d":"11.70"},{"v":104.74,"d":"104.74 €"},{"$f":"ROUND(J17*K17,2)","v":{"v":1225.46,"d":"1,225.46 €"}}]
[]
[{"$nulls":3},"TOTAL DEMOLICIONES",{"$nulls":7},{"$f":"L17","v":{"v":1225.46,"d":"1,225.46 €"}}]
[]
[{"$nulls":3},"EXCAVACIONES"]
[null,"EXC_CIE_AB_TI",null,"M3 EXCAV. A CIELO ABIERTO EN TIERRA"]
[{"$nulls":3},"Excavación y carga  a cielo abierto, en obra de explanación por medios mecánicos en tierras de cualquier tipo, medidas sobre perfil, incluso transporte a vertedero o lugar de empleo y canon de vertido de los materiales sobrantes.\r\n"]
[{"$nulls":3},"Explanacion frente depósito",{"v":1,"d":"1.00"},{"v":20,"d":"20.00"},{"v":0.5,"d":"0.50"},{"v":5,"d":"5.00"},{"v":50,"d":"50.00"}]
[{"$nulls":3},"Prezanja Sala Red Alta-Remate desagüe 2",{"v":1,"d":"1.00"},{"v":14,"d":"14.00"},{"v":1,"d":"1.00"},{"v":3,"d":"3.00"},{"v":42,"d":"42.00"}]
[{"$nulls":3},"Prezanja PR2-Remate desagüe 1",{"v":1,"d":"1.00"},{"v":10,"d":"10.00"},{"v":1,"d":"1.00"},{"v":3,"d":"3.00"},{"v":30,"d":"30.00"}]
[{"$nulls":9},{"v":122,"d":"122.00"},{"v":18.72,"d":"18.72 €"},{"$f":"ROUND(J27*K27,2)","v":{"v":2283.84,"d":"2,283.84 €"}}]
[]
[{"$nulls":3},"TOTAL EXCAVACIONES",{"$nulls":7},{"$f":"L27","v":{"v":2283.84,"d":"2,283.84 €"}}]
[]
[{"$nulls":3},"RELLENOS"]
[null,"TER_TI_EXC",null,"M3 TERRAPLEN TIERRAS DE EXCAVACION"]
[{"$nulls":3},"Terraplén con tierras procedentes de la misma excavación, extendido y compactado al 95% de P.M. en obras de explanación.\r\n\r\n"]
[{"$nulls":3},"Explanacion frente depósito",{"v":1,"d":"1.00"},{"v":20,"d":"20.00"},{"v":0.2,"d":"0.20"},{"v":5,"d":"5.00"},{"v":20,"d":"20.00"}]
[{"$nulls":3},"Prezanja Sala Red Alta-Remate desagüe 2",{"v":1,"d":"1.00"},{"v":14,"d":"14.00"},{"v":1,"d":"1.00"},{"v":3,"d":"3.00"},{"v":42,"d":"42.00"}]
[{"$nulls":3},"Prezanja PR2-Remate desagüe 1",{"v":1,"d":"1.00"},{"v":10,"d":"10.00"},{"v":1,"d":"1.00"},{"v":3,"d":"3.00"},{"v":30,"d":"30.00"}]
[{"$nulls":9},{"v":92,"d":"92.00"},{"v":9.11,"d":"9.11 €"},{"$f":"ROUND(J37*K37,2)","v":{"v":838.12,"d":"838.12 €"}}]
[]
[{"$nulls":3},"TOTAL RELLENOS",{"$nulls":7},{"$f":"L37","v":{"v":838.12,"d":"838.12 €"}}]
[]
[{"$nulls":3},"ELTOS AUX EN EXCAVACIONES"]
[null,"CATA_OBRA_RURAL",null,"0009 CATA 1,20x1,20x1,40 M EN TIERRAS (OBRA)"]
[{"$nulls":3},"Cata de 1,20 x 1,20 x 1,40 m., en zona rural, para localización de servicios durante la ejecución de la obra, incluída la excavación por mecánicos o manuales, agotamientos, relleno y compactación con material de la propia excavación."]
[{"$nulls":3},"Previsión",{"v":2,"d":"2.00"},{"$nulls":3},{"v":2,"d":"2.00"}]
[{"$nulls":9},{"v":2,"d":"2.00"},{"v":98,"d":"98.00 €"},{"$f":"ROUND(J45*K45,2)","v":{"v":196,"d":"196.00 €"}}]
[]
[null,"ENTIB LIG ALUM",null,"0010 ENTIB LIG ALUM H<2,40 M"]
[{"$nulls":3},"Entibación ligera de aluminio para contención de tierras en zanjas y pozos de registro de hasta 2,40 mts. de profundidad, configurada mediante guías de esquina y planchas de 0,60 mts. acodaladas con puntales telescópicos. Incluso suministro, montaje y desmontaje en obra, manipulación y coste de inmovilización durante el tiempo de duración de trabajos, así como los sistemas de protección de borde indicados por el fabricante, medida segun longitud de zanja ejecutada."]
[{"$nulls":3},"Sala Red Alta-Remate desagüe 2",{"v":1,"d":"1.00"},{"v":14,"d":"14.00"},null,null,{"v":14,"d":"14.00"}]
[{"$nulls":3},"PR2-Remate desagüe 1",{"v":1,"d":"1.00"},{"v":10,"d":"10.00"},null,null,{"v":10,"d":"10.00"}]
[{"$nulls":9},{"v":24,"d":"24.00"},{"v":21.82,"d":"21.82 €"},{"$f":"ROUND(J51*K51,2)","v":{"v":523.68,"d":"523.68 €"}}]
[]
[{"$nulls":3},"TOTAL ELTOS AUX EN EXCAVACIONES",{"$nulls":7},{"$f":"L45+L51","v":{"v":719.68,"d":"719.68 €"}}]
[]
[{"$nulls":3},"ZANJAS TIPO"]
[null,"ZJA_ABS_TIP_III_TIER",null,"ML ZANJA SECCION TIPO ZJA_ABS_TIP_III_TIER\t"]
[{"$nulls":3},"Apertura y cierre de zanja en tierras, en todo tipo de terreno, incluso roca, a mano o a máquina para tubería de abastecimiento y profundidad de rasante inferior de tubo hasta 1,50 m, que incluye parte proporcional de agotamiento, cama y recubrimiento de arena, cinta señalizadora, relleno con material seleccionado de la excavación, incluso carga y transporte a lugar de empleo o vertedero y eventual canon de vertido de tuberías existentes y de sobrantes, según SECCIÓN TIPO ZJA_ABS_TIP_III_TIER, medida la longitud real."]
[{"$nulls":3},"Distribución",{"v":1,"d":"1.00"},{"v":18,"d":"18.00"},null,null,{"v":18,"d":"18.00"}]
[{"$nulls":9},{"v":18,"d":"18.00"},{"v":24,"d":"24.00 €"},{"$f":"ROUND(J59*K59,2)","v":{"v":432,"d":"432.00 €"}}]
[]
[null,"ZJA_SAN_TIP_III_TIER",null,"ML ZANJA SECCION TIPO ZJA_SAN_TIP_III_TIER"]
[{"$nulls":3},"Apertura y cierre de zanja de saneamiento en tierras, cuando H>0,60 m, en todo tipo de terreno, incluso roca, a mano o a máquina para tubería de PVC o PE y profundidad de rasante inferior de tubo hasta 1,50 m, que incluye parte proporcional de agotamiento, cama y recubrimiento de arena, cinta señalizadora, relleno con material seleccionado procedente de excavación, carga y transporte de sobrantes a lugar de empleo o vertedero y eventual canon de vertido, según SECCION TIPO ZJA_SAN_TIP_III_TIER, medida la longitud real."]
[{"$nulls":3},"Cámara de llaves - PR1",{"v":1,"d":"1.00"},{"v":3,"d":"3.00"},null,null,{"v":3,"d":"3.00"}]
[{"$nulls":3},"PR1-PR2",{"v":1,"d":"1.00"},{"v":14,"d":"14.00"},null,null,{"v":14,"d":"14.00"}]
[{"$nulls":3},"PR2-Remate desagüe 1",{"v":1,"d":"1.00"},{"v":10,"d":"10.00"},null,null,{"v":10,"d":"10.00"}]
[{"$nulls":3},"Sala control - Remate desagüe 2",{"v":1,"d":"1.00"},{"v":18,"d":"18.00"},null,null,{"v":18,"d":"18.00"}]
[{"$nulls":9},{"v":45,"d":"45.00"},{"v":43.01,"d":"43.01 €"},{"$f":"ROUND(J67*K67,2)","v":{"v":1935.45,"d":"1,935.45 €"}}]
[]
[{"$nulls":3},"TOTAL ZANJAS TIPO",{"$nulls":7},{"$f":"L59+L67","v":{"v":2367.45,"d":"2,367.45 €"}}]
[]
[{"$nulls":3},"TOTAL MOVIMIENTO DE TIERRAS Y DEMOLICIONES",{"$nulls":7},{"$f":"L19+L29+L39+L53+L69","v":{"v":7434.55,"d":"7,434.55 €"}}]
[]
[{"$nulls":3},"SANEAMIENTO"]
[]
[{"$nulls":3},"TUBERÍAS DE PVC"]
[null,"PVC TØ315",null,"0008 TUBERÍA PVC TEJA Ø 315 MM"]
[{"$nulls":3},"Colector de PVC rígido, color TEJA, de 315 mm. de diámetro y espesor de 7,7 mm - SN4 (UNE-EN 1401), incluso p.p. de codos, junta elástica bilabial, piezas especiales, conexiones,....colocada y probada.\r\n"]
[{"$nulls":3},"PR1-PR2",{"v":1,"d":"1.00"},{"v":14,"d":"14.00"},null,null,{"v":14,"d":"14.00"}]
[{"$nulls":3},"PR2-Remate desagüe 1",{"v":1,"d":"1.00"},{"v":10,"d":"10.00"},null,null,{"v":10,"d":"10.00"}]
[{"$nulls":9},{"v":24,"d":"24.00"},{"v":37.36,"d":"37.36 €"},{"$f":"ROUND(J80*K80,2)","v":{"v":896.64,"d":"896.64 €"}}]
[]
[null,"PVC TØ250",null,"0008 TUBERÍA PVC TEJA Ø 250 MM"]
[{"$nulls":3},"Colector de PVC rígido, color TEJA, de 250 mm. de diámetro y espesor de 6,2 mm - SN4 (UNE-EN 1401), incluso p.p. de codos, junta elástica bilabial, piezas especiales, conexiones,....colocada y probada.\r\n"]
[{"$nulls":3},"Cámara de llaves - PR1",{"v":1,"d":"1.00"},{"v":3,"d":"3.00"},null,null,{"v":3,"d":"3.00"}]
[{"$nulls":9},{"v":3,"d":"3.00"},{"v":29.39,"d":"29.39 €"},{"$f":"ROUND(J85*K85,2)","v":{"v":88.17,"d":"88.17 €"}}]
[]
[null,"PVC TØ200",null,"0008 TUBERÍA PVC TEJA Ø 200 MM"]
[{"$nulls":3},"Colector de PVC rígido, color TEJA, de 200 mm. de diámetro y espesor de 4,9 mm - SN4 (UNE-EN 1401), incluso p.p. de codos, junta elástica bilabial, piezas especiales, conexiones,....colocada y probada.\r\n"]
[{"$nulls":3},"Sala control - Remate desagüe 2",{"v":1,"d":"1.00"},{"v":18,"d":"18.00"},null,null,{"v":18,"d":"18.00"}]
[{"$nulls":9},{"v":18,"d":"18.00"},{"v":21.9,"d":"21.90 €"},{"$f":"ROUND(J90*K90,2)","v":{"v":394.2,"d":"394.20 €"}}]
[]
[{"$nulls":3},"TOTAL TUBERÍAS DE PVC",{"$nulls":7},{"$f":"L80+L85+L90","v":{"v":1379.01,"d":"1,379.01 €"}}]
[]
[{"$nulls":3},"TOTAL SANEAMIENTO",{"$nulls":7},{"$f":"L92","v":{"v":1379.01,"d":"1,379.01 €"}}]
[]
[{"$nulls":3},"ABASTECIMIENTO"]
[]
[{"$nulls":3},"FUNDICIÓN DÚCTIL"]
[{"$nulls":3},"TUBERÍAS FUNDICIÓN DÚCTIL"]
[null,"FD Ø200",null,"0008 TUBERIA FUNDICION DÚCTIL Ø 200"]
[{"$nulls":3},"Tubería de FD de 200 mm. de diámetro con junta automática flexible, revestimiento interior con mortero de cemento y revestimiento exterior con barniz, según norma UNE-EN-545, incluso p.p. juntas, montaje, pruebas y desinfección.\r\n\r\n"]
[{"$nulls":3},"Distribución",{"v":1,"d":"1.00"},{"v":18,"d":"18.00"},null,null,{"v":18,"d":"18.00"}]
[{"$nulls":9},{"v":18,"d":"18.00"},{"v":55.89,"d":"55.89 €"},{"$f":"ROUND(J103*K103,2)","v":{"v":1006.02,"d":"1,006.02 €"}}]
[]
[{"$nulls":3},"TOTAL TUBERÍAS FUNDICIÓN DÚCTIL",{"$nulls":7},{"$f":"L103","v":{"v":1006.02,"d":"1,006.02 €"}}]
[]
[{"$nulls":3},"CODOS DE FUND. DÚCTIL"]
[null,"C_BB_45_Ø200",null,"UN CODO FD BB 45 º Ø200"]
[{"$nulls":3},"Codo de fundición dúctil brida - brida de 45º y de diámetro 200 mm., PN 16, revestimiento exterior e interior según norma UNE EN 545, incluso p.p de juntas, tornillos, montaje, pruebas y desinfección.\r\n\r\n\r\n"]
[{"$nulls":3},"Derivación a Bombeo",{"v":2,"d":"2.00"},{"$nulls":3},{"v":2,"d":"2.00"}]
[{"$nulls":9},{"v":2,"d":"2.00"},{"v":220.03,"d":"220.03 €"},{"$f":"ROUND(J111*K111,2)","v":{"v":440.06,"d":"440.06 €"}}]
[]
[null,"C_BB_45_Ø80",null,"UN CODO FD BB 45 º Ø80"]
[{"$nulls":3},"Codo de fundición dúctil brida - brida de 45º y de diámetro 80 mm., PN 16, revestimiento exterior e interior según norma UNE EN 545, incluso p.p de juntas, tornillos, montaje, pruebas y desinfección.\r\n\r\n\r\n"]
[{"$nulls":3},"Derivación a Bombeo",{"v":1,"d":"1.00"},{"$nulls":3},{"v":1,"d":"1.00"}]
[{"$nulls":9},{"v":1,"d":"1.00"},{"v":92.79,"d":"92.79 €"},{"$f":"ROUND(J116*K116,2)","v":{"v":92.79,"d":"92.79 €"}}]
[]
[{"$nulls":3},"TOTAL CODOS DE FUND. DÚCTIL",{"$nulls":7},{"$f":"L111+L116","v":{"v":532.85,"d":"532.85 €"}}]
[]
[{"$nulls":3},"TES DE FUND. DÚCTIL"]
[null,"T_BBB_200X80",null,"UN PIEZA EN TE DE FD, PN 16 BBB 200x80"]
[{"$nulls":3},"TE de fundición dúctil brida - brida - brida de diámetro 200 mm. con salida de diámetro 80 mm., PN 16, revestimiento exterior e interior según norma UNE EN 545, incluso p.p de juntas, tornillos, montaje, pruebas y desinfección.\r\n\r\n"]
[{"$nulls":3},"Derivación a Bombeo",{"v":1,"d":"1.00"},{"$nulls":3},{"v":1,"d":"1.00"}]
[{"$nulls":9},{"v":1,"d":"1.00"},{"v":278.54,"d":"278.54 €"},{"$f":"ROUND(J124*K124,2)","v":{"v":278.54,"d":"278.54 €"}}]
[]
[{"$nulls":3},"TOTAL TES DE FUND. DÚCTIL",{"$nulls":7},{"$f":"L124","v":{"v":278.54,"d":"278.54 €"}}]
[]
[{"$nulls":3},"CONOS FUNDICION DÚCTIL"]
[null,"CON_BB_200",null,"UN CONO RED. BB 200"]
[{"$nulls":3},"Cono de reducción brida - brida de diámetro mayor 200 mm. y diámetro menor según proyecto, PN 16, revestimiento exterior e interior según norma UNE EN 545, incluso p.p de juntas, tornillos, montaje, pruebas y desinfección.\r\n\r\n"]
[{"$nulls":3},"By-pass provisional a bombeo",{"v":1,"d":"1.00"},{"$nulls":3},{"v":1,"d":"1.00"}]
[{"$nulls":9},{"v":1,"d":"1.00"},{"v":162.9,"d":"162.90 €"},{"$f":"ROUND(J132*K132,2)","v":{"v":162.9,"d":"162.90 €"}}]
[]
[null,"CON_BB_100",null,"UN CONO RED. BB 100"]
[{"$nulls":3},"Cono de reducción brida - brida de diámetro mayor 100 mm. y diámetro menor según proyecto, PN 16, revestimiento exterior e interior según norma UNE EN 545, incluso p.p de juntas, tornillos, montaje, pruebas y desinfección.\r\n\r\n"]
[{"$nulls":3},"By-pass provisional a bombeo",{"v":1,"d":"1.00"},{"$nulls":3},{"v":1,"d":"1.00"}]
[{"$nulls":9},{"v":1,"d":"1.00"},{"v":96.66,"d":"96.66 €"},{"$f":"ROUND(J137*K137,2)","v":{"v":96.66,"d":"96.66 €"}}]
[]
[{"$nulls":3},"TOTAL CONOS FUNDICION DÚCTIL",{"$nulls":7},{"$f":"L132+L137","v":{"v":259.56,"d":"259.56 €"}}]
[]
[{"$nulls":3},"BRIDAS CIEGAS Y ROSCADAS"]
[null,"BRØ200",null,"UN BRIDA ROSCADA Ø200"]
[{"$nulls":3},"Brida roscada de funfición dúctil de diámetro 200 mm. con salida roscada de diámetro según proyecto., PN 16, revestimiento exterior e interior según norma UNE EN 545, incluso p.p de juntas, tornillos, montaje, pruebas y desinfección.\r\n\r\n"]
[{"$nulls":3},"By-pass provisional a bombeo",{"v":1,"d":"1.00"},{"$nulls":3},{"v":1,"d":"1.00"}]
[{"$nulls":9},{"v":1,"d":"1.00"},{"v":99.83,"d":"99.83 €"},{"$f":"ROUND(J145*K145,2)","v":{"v":99.83,"d":"99.83 €"}}]
[]
[{"$nulls":3},"TOTAL BRIDAS CIEGAS Y ROSCADAS",{"$nulls":7},{"$f":"L145","v":{"v":99.83,"d":"99.83 €"}}]
[]
[{"$nulls":3},"EMPALMES BRIDA ENCHUFE"]
[null,"BEØ200",null,"UN EMPALME BRIDA ENCHUFE Ø200"]
[{"$nulls":3},"Empalme de fundición dúctil brida - enchufe de diámetro 200 mm., revestimiento exterior e interior según norma UNE EN 545, incluso p.p de juntas, tornillos, montaje, pruebas y desinfección.\r\n\r\n"]
[{"$nulls":3},"Conexión salida cámara de llaves",{"v":1,"d":"1.00"},{"$nulls":3},{"v":1,"d":"1.00"}]
[{"$nulls":3},"Derivación a Bombeo",{"v":2,"d":"2.00"},{"$nulls":3},{"v":2,"d":"2.00"}]
[{"$nulls":9},{"v":3,"d":"3.00"},{"v":132.67,"d":"132.67 €"},{"$f":"ROUND(J154*K154,2)","v":{"v":398.01,"d":"398.01 €"}}]
[]
[null,"BEØ80",null,"UN EMPALME BRIDA ENCHUFE Ø80"]
[{"$nulls":3},"Empalme de fundición dúctil brida - enchufe de diámetro 80 mm., revestimiento exterior e interior según norma UNE EN 545, incluso p.p de juntas, tornillos, montaje, pruebas y desinfección.\r\n\r\n"]
[{"$nulls":3},"Derivación a Bombeo",{"v":1,"d":"1.00"},{"$nulls":3},{"v":1,"d":"1.00"}]
[{"$nulls":9},{"v":1,"d":"1.00"},{"v":57.91,"d":"57.91 €"},{"$f":"ROUND(J159*K159,2)","v":{"v":57.91,"d":"57.91 €"}}]
[]
[{"$nulls":3},"TOTAL EMPALMES BRIDA ENCHUFE",{"$nulls":7},{"$f":"L154+L159","v":{"v":455.91999999999996,"d":"455.92 €"}}]
[]
[{"$nulls":3},"BRIDAS MÓVILES"]
[null,"B_MOV_Ø100",null,"UN BRIDA MÓVIL Ø100"]
[{"$nulls":3},"Brida móvil de fundición dúctil de diámetro 100 mm., revestimiento exterior e interior según norma UNE EN 545, incluso p.p de juntas, tornillos, montaje, pruebas y desinfección.\r\n\r\n"]
[{"$nulls":3},"By-pass provisional a bombeo",{"v":2,"d":"2.00"},{"$nulls":3},{"v":2,"d":"2.00"}]
[{"$nulls":9},{"v":2,"d":"2.00"},{"v":35.91,"d":"35.91 €"},{"$f":"ROUND(J167*K167,2)","v":{"v":71.82,"d":"71.82 €"}}]
[]
[{"$nulls":3},"TOTAL BRIDAS MÓVILES",{"$nulls":7},{"$f":"L167","v":{"v":71.82,"d":"71.82 €"}}]
[]
[{"$nulls":3},"BRIDAS ENCHUFES UNIVERSALES"]
[null,"BE_UNIV_Ø200",null,"UN BRIDA ENCHUFE UNIVERSAL FD Ø200"]
[{"$nulls":3},"Brida enchufe universal de fundición ductil, DN 200 mm., para unión de tubos de igual o distinto material, con revestimiento interior y exterior de epoxi, según norma UNE EN 545, incluso p.p de juntas, tornillos, montaje, pruebas y desinfección.\r\n\r\n\r\n"]
[{"$nulls":3},"Cámara de llaves",{"v":2,"d":"2.00"},{"$nulls":3},{"v":2,"d":"2.00"}]
[{"$nulls":9},{"v":2,"d":"2.00"},{"v":243.97,"d":"243.97 €"},{"$f":"ROUND(J175*K175,2)","v":{"v":487.94,"d":"487.94 €"}}]
[]
[null,"BE_UNIV_Ø150",null,"UN BRIDA ENCHUFE UNIVERSAL FD Ø150"]
[{"$nulls":3},"Brida enchufe universal de fundición ductil, DN 150 mm., para unión de tubos de igual o distinto material, con revestimiento interior y exterior de epoxi, según norma UNE EN 545, incluso p.p de juntas, tornillos, montaje, pruebas y desinfección.\r\n\r\n"]
[{"$nulls":3},"Cámara de llaves",{"v":2,"d":"2.00"},{"$nulls":3},{"v":2,"d":"2.00"}]
[{"$nulls":9},{"v":2,"d":"2.00"},{"v":165.6,"d":"165.60 €"},{"$f":"ROUND(J180*K180,2)","v":{"v":331.2,"d":"331.20 €"}}]
[]
[{"$nulls":3},"TOTAL BRIDAS ENCHUFES UNIVERSALES",{"$nulls":7},{"$f":"L175+L180","v":{"v":819.14,"d":"819.14 €"}}]
[]
[{"$nulls":3},"TOTAL FUNDICIÓN DÚCTIL",{"$nulls":7},{"$f":"L105+L118+L126+L139+L147+L161+L169+L182","v":{"v":3523.68,"d":"3,523.68 €"}}]
[]
[{"$nulls":3},"POLIETILENO ALTA DENSIDAD"]
[{"$nulls":3},"TUBERÍAS DE POLIETILENO"]
[null,"PEAD 110",null,"UN TUBERÍA PEAD DN 110 PN 16"]
[{"$nulls":3},"Tubería de polietileno PE-100 de alta densidad, diámetro exterior 110 mm y presión nominal de 1,60 Mpa, incluso p.p de colocación, piezas especiales, pruebas y desinfección.\r\n"]
[{"$nulls":3},"By-pass provisional a bombeo",{"v":6,"d":"6.00"},{"$nulls":3},{"v":6,"d":"6.00"}]
[{"$nulls":9},{"v":6,"d":"6.00"},{"v":16.12,"d":"16.12 €"},{"$f":"ROUND(J191*K191,2)","v":{"v":96.72,"d":"96.72 €"}}]
[]
[{"$nulls":3},"TOTAL TUBERÍAS DE POLIETILENO",{"$nulls":7},{"$f":"L191","v":{"v":96.72,"d":"96.72 €"}}]
[]
[{"$nulls":3},"PIEZAS POLIETILENO"]
[null,"MAN_ES_110",null,"UN MANGUITO ELECTROSOLDABLE DN:110"]
[{"$nulls":3},"Incluso suministro, montaje y pruebas, totalmente instalado.\r\n"]
[{"$nulls":3},"By-pass provisional a bombeo",{"v":2,"d":"2.00"},{"$nulls":3},{"v":2,"d":"2.00"}]
[{"$nulls":9},{"v":2,"d":"2.00"},{"v":21.63,"d":"21.63 €"},{"$f":"ROUND(J199*K199,2)","v":{"v":43.26,"d":"43.26 €"}}]
[]
[null,"VALONA_110",null,"0005 VALONA DE POLIETILENO INYECTADO DN 110"]
[{"$nulls":3},"Incluso suministro, montaje y pruebas, totalmente instalado.\r\n"]
[{"$nulls":3},"By-pass provisional a bombeo",{"v":2,"d":"2.00"},{"$nulls":3},{"v":2,"d":"2.00"}]
[{"$nulls":9},{"v":2,"d":"2.00"},{"v":6.93,"d":"6.93 €"},{"$f":"ROUND(J204*K204,2)","v":{"v":13.86,"d":"13.86 €"}}]
[]
[{"$nulls":3},"TOTAL PIEZAS POLIETILENO",{"$nulls":7},{"$f":"L199+L204","v":{"v":57.12,"d":"57.12 €"}}]
[]
[{"$nulls":3},"TOTAL POLIETILENO ALTA DENSIDAD",{"$nulls":7},{"$f":"L193+L206","v":{"v":153.84,"d":"153.84 €"}}]
[]
[{"$nulls":3},"VÁLVULAS"]
[{"$nulls":3},"VÁLV. COMPUERTA ASIENTO ELÁSTICO"]
[null,"VCAE Ø80",null,"UN VALV. COMP. AS. ELAST. Ø80"]
[{"$nulls":3},"Válvula de compuerta de asiento elástico de fundición dúctil con unión mediante bridas y recubrimiento elastómero, eje de acero inoxidable, PN 16 y diámetro Ø80, distancia entre bridas reducida, según EN 1074, incluso p.p. de juntas, tornillos de acero inoxidable, cinta señalizadora, montaje, pruebas y desinfección.\r\n\r\n\r\n"]
[{"$nulls":3},"Derivación a Bombeo",{"v":1,"d":"1.00"},{"$nulls":3},{"v":1,"d":"1.00"}]
[{"$nulls":9},{"v":1,"d":"1.00"},{"v":197.7,"d":"197.70 €"},{"$f":"ROUND(J215*K215,2)","v":{"v":197.7,"d":"197.70 €"}}]
[]
[{"$nulls":3},"TOTAL VÁLV. COMPUERTA ASIENTO ELÁSTICO",{"$nulls":7},{"$f":"L215","v":{"v":197.7,"d":"197.70 €"}}]
[]
[{"$nulls":3},"TOTAL VÁLVULAS",{"$nulls":7},{"$f":"L217","v":{"v":197.7,"d":"197.70 €"}}]
[]
[{"$nulls":3},"TOTAL ABASTECIMIENTO",{"$nulls":7},{"$f":"L184+L208+L219","v":{"v":3875.22,"d":"3,875.22 €"}}]
[]
[{"$nulls":3},"ARQUETAS"]
[]
[null,"ARQ_40_HGON",null,"UN ARQUETA REGISTRO 40x40 HORMIGON"]
[{"$nulls":3},"Arqueta de registro de hormigón de dimensiones interiores 40 x 40 cm., incluso marco y tapa de fundición dúctil C-250, superficie peatonal antideslizante, incluso demoliciones, excavaciones, conexiones, agotamiento, obras de fábrica, completamente terminado.\r\n"]
[{"$nulls":3},"Sumidero caseta control ALTA",{"v":1,"d":"1.00"},{"$nulls":3},{"v":1,"d":"1.00"}]
[{"$nulls":9},{"v":1,"d":"1.00"},{"v":270.94,"d":"270.94 €"},{"$f":"ROUND(J228*K228,2)","v":{"v":270.94,"d":"270.94 €"}}]
[]
[null,"ARQ_60_HGON",null,"UN ARQUETA REGISTRO 60x60 HORMIGON"]
[{"$nulls":3},"Arqueta de registro de hormigón de dimensiones interiores 60 x 60 cm., incluso marco y tapa de fundición dúctil C-250, superficie peatonal antideslizante, incluso demoliciones, excavaciones, conexiones, agotamiento, obras de fábrica, completamente terminado.\r\n"]
[{"$nulls":3},"Sumidero cámara de llaves",{"v":1,"d":"1.00"},{"$nulls":3},{"v":1,"d":"1.00"}]
[{"$nulls":9},{"v":1,"d":"1.00"},{"v":432.49,"d":"432.49 €"},{"$f":"ROUND(J233*K233,2)","v":{"v":432.49,"d":"432.49 €"}}]
[]
[null,"ARQ_80_HGON",null,"UN ARQUETA REGISTRO 80x80 HORMIGON"]
[{"$nulls":3},"Arqueta de registro de hormigón de dimensiones interiores 80 x 80 cm., incluso marco y tapa de fundición dúctil C-250, superficie peatonal antideslizante, incluso demoliciones, excavaciones, conexiones, agotamiento, obras de fábrica, completamente terminado.\r\n"]
[{"$nulls":3},"Derivación bombeo",{"v":1,"d":"1.00"},{"$nulls":3},{"v":1,"d":"1.00"}]
[{"$nulls":9},{"v":1,"d":"1.00"},{"v":731.11,"d":"731.11 €"},{"$f":"ROUND(J238*K238,2)","v":{"v":731.11,"d":"731.11 €"}}]
[]
[null,"PR 1 _PF-2",null,"UN P.R. 1000 BASE  Y ELEMENTOS PREF. HASTA"]
[{"$nulls":3},"Pozo de registro prefabricado de diámetro interior 1,00 m, con base prefabricada, alzados con anillos de hormigón armado y cono o losa de reducción a Ø65, de profundidad menor de 2 m., incluso excavación, hormigón de relleno, juntas de estanqueidad entre elementos, pates,  marco y tapa de fundición normalizada (D-400), completamente terminado.\r\n"]
[{"$nulls":3},"PR1",{"v":1,"d":"1.00"},{"$nulls":3},{"v":1,"d":"1.00"}]
[{"$nulls":9},{"v":1,"d":"1.00"},{"v":863.01,"d":"863.01 €"},{"$f":"ROUND(J243*K243,2)","v":{"v":863.01,"d":"863.01 €"}}]
[]
[null,"PR 1 _PF 2",null,"UN P.R. 1000 BASE  Y ELEMENTOS PREF. MAYOR"]
[{"$nulls":3},"Pozo de registro prefabricado de diámetro interior 1,00 m, con base prefabricada, alzados con anillos de hormigón armado y cono o losa de reducción a Ø65, de profundidad mayor de 2 m., incluso excavación, hormigón de relleno, juntas de estanqueidad entre elementos, pates,  marco y tapa de fundición normalizada, completamente terminado.\r\n"]
[{"$nulls":3},"PR2",{"v":1,"d":"1.00"},{"$nulls":3},{"v":1,"d":"1.00"}]
[{"$nulls":9},{"v":1,"d":"1.00"},{"v":1240.89,"d":"1,240.89 €"},{"$f":"ROUND(J248*K248,2)","v":{"v":1240.89,"d":"1,240.89 €"}}]
[]
[{"$nulls":3},"TOTAL ARQUETAS",{"$nulls":7},{"$f":"L228+L233+L238+L243+L248","v":{"v":3538.4400000000005,"d":"3,538.44 €"}}]
[]
[{"$nulls":3},"PAVIMENTACION Y URBANIZACION"]
[]
[{"$nulls":3},"PAVIMENTOS ASFÁLTICOS"]
[null,"SUB_GR",null,"M3 SUB-BASE GRANULAR"]
[{"$nulls":3},"Sub-base granular, incluso suministro en obra del material, extendido, riego y compactación al 97% del P.M.\r\n"]
[{"$nulls":3},"Explanacion frente depósito (mejora)",{"v":1,"d":"1.00"},{"v":20,"d":"20.00"},{"v":0.3,"d":"0.30"},{"v":5,"d":"5.00"},{"v":30,"d":"30.00"}]
[{"$nulls":9},{"v":30,"d":"30.00"},{"v":33.74,"d":"33.74 €"},{"$f":"ROUND(J258*K258,2)","v":{"v":1012.2,"d":"1,012.20 €"}}]
[]
[{"$nulls":3},"TOTAL PAVIMENTOS ASFÁLTICOS",{"$nulls":7},{"$f":"L258","v":{"v":1012.2,"d":"1,012.20 €"}}]
[]
[{"$nulls":3},"HORMIGONES"]
[null,"HGON_RELL_20",null,"M3 HORM. RELLENO HM-20 (1,3<HR<5 m)"]
[{"$nulls":3},"Base de hormigón HM-20 para protección de tuberías en zanjas de profundidades comprendidad entre 1,30 y 5,00 m, en recubrimiento de tubería, colocado y vibrado.\r\n"]
[{"$nulls":3},"Previsión",{"v":3,"d":"3.00"},{"v":1,"d":"1.00"},{"v":0.8,"d":"0.80"},{"v":0.8,"d":"0.80"},1.92]
[{"$nulls":9},1.92,{"v":113.29,"d":"113.29 €"},{"$f":"ROUND(J266*K266,2)","v":{"v":217.52,"d":"217.52 €"}}]
[]
[{"$nulls":3},"TOTAL HORMIGONES",{"$nulls":7},{"$f":"L266","v":{"v":217.52,"d":"217.52 €"}}]
[]
[{"$nulls":3},"TOTAL PAVIMENTACION Y URBANIZACION",{"$nulls":7},{"$f":"L260+L268","v":{"v":1229.72,"d":"1,229.72 €"}}]
[]
[{"$nulls":3},"REHABILITACIÓN ESTRUCTURAL DE DEPÓSITOS"]
[]
[null,"PIC_VIG_LONG",null,"ML PICADO DE VIGAS LONGITUDINALES"]
[{"$nulls":3},"Picado de vigas longitudinales y transversales, eliminando zonas deterioradas del hormigón, por aumento del volumen de las armaduras, incluso retirada de escombros a vertedero."]
[{"$nulls":3},"Prevision",{"v":1,"d":"1.00"},{"v":50,"d":"50.00"},null,null,{"v":50,"d":"50.00"}]
[{"$nulls":9},{"v":50,"d":"50.00"},{"v":23.35,"d":"23.35 €"},{"$f":"ROUND(J277*K277,2)","v":{"v":1167.5,"d":"1,167.50 €"}}]
[]
[null,"PIC_TECHOS_DEP",null,"0009 PICADO DE TECHOS DE DEPOSITO"]
[{"$nulls":3},"Picado hormigón deteriorado de techos en depósito, en armaduras oxidadas debido al cloro del agua y al escaso recubrimiento de las armaduras, incluso montaje y desmontaje de andamios."]
[{"$nulls":3},"Previsión",{"v":1,"d":"1.00"},{"v":100,"d":"100.00"},null,null,{"v":100,"d":"100.00"}]
[{"$nulls":9},{"v":100,"d":"100.00"},{"v":18.06,"d":"18.06 €"},{"$f":"ROUND(J282*K282,2)","v":{"v":1806,"d":"1,806.00 €"}}]
[]
[null,"CHOR_TECH_PAR_SUEL",null,"0009 CHORREO TECHOS PAREDES Y SUELOS"]
[{"$nulls":3},"Limpieza de paredes en techos, paredes y suelo de 2 senos, incluso en cámara de llaves y cuarto\r\r de valvulería, mediante chorreo de agua a presión aplicado en toda la superficie 3 veces, eliminando \rrestos de polvo, hormigón, y roña en armaduras, para poder aplicar los productos descritos."]
[{"$nulls":3},"Previsión senos",{"v":1,"d":"1.00"},{"v":250,"d":"250.00"},null,null,{"v":250,"d":"250.00"}]
[{"$nulls":3},"Cámara de llaves",{"v":1,"d":"1.00"},{"v":110,"d":"110.00"},null,null,{"v":110,"d":"110.00"}]
[{"$nulls":9},{"v":360,"d":"360.00"},{"v":8.63,"d":"8.63 €"},{"$f":"ROUND(J288*K288,2)","v":{"v":3106.8,"d":"3,106.80 €"}}]
[]
[null,"PROT_ARM_LIMP_VIG",null,"ML PROTECCION ARMADURAS, LIMPIEZA EN VIGAS"]
[{"$nulls":3},"Limpieza de las armaduras oxidadas en vigas con cepillos de alambre, 1 mano de líquido protector de las mismas con \"ferroxido\", 2 manos de imprimacion anticorrosiva ZINRICH e FOSROC aplicado con brocha, llegando a pintar la totalidad de la misma en estribos y barras longitudinales, colocación de andamios."]
[{"$nulls":3},"Previsión",{"v":1,"d":"1.00"},{"v":50,"d":"50.00"},null,null,{"v":50,"d":"50.00"}]
[{"$nulls":9},{"v":50,"d":"50.00"},{"v":18.29,"d":"18.29 €"},{"$f":"ROUND(J293*K293,2)","v":{"v":914.5,"d":"914.50 €"}}]
[]
[null,"PROT_ARM_LIM_TECH",null,"0009 PROTECCION ARMADURAS, LIMPIEZA EN TECHOS"]
[{"$nulls":3},"Limpieza de las armaduras oxidadas en techos con cepillos de alambre, 1 mano de líquido protector\r\r convertidor de las mismas con \" ferróxido\" de Norquimia, aplicado con brocha, llegando a pintar la totalidad de la misma en barras longitudinales."]
[{"$nulls":3},"Previsión",{"v":1,"d":"1.00"},{"v":100,"d":"100.00"},null,null,{"v":100,"d":"100.00"}]
[{"$nulls":9},{"v":100,"d":"100.00"},{"v":15.87,"d":"15.87 €"},{"$f":"ROUND(J298*K298,2)","v":{"v":1587,"d":"1,587.00 €"}}]
[]
[null,"REP_HGON_VIGAS SF",null,"ML REPARACION HORM. DETERIORADO VIGAS SF"]
[{"$nulls":3},"Suministro y colocación de mortero de alta resistencia modificado con polímeros y fibras RENDEROC\r\r SF de FOSROC o similar, previa limpieza del soporte, humedecido, incluso aplicación de lechada\r\r NITOBOND HAR de FOSROC para mejorar la adherencia con el hormigón viejo en vigas\r\r longitudinales y transversales, encofrados laterales para sacar esquinas, medida la longitud ejecutada."]
[{"$nulls":3},"Previsión",{"v":1,"d":"1.00"},{"v":50,"d":"50.00"},null,null,{"v":50,"d":"50.00"}]
[{"$nulls":9},{"v":50,"d":"50.00"},{"v":56.12,"d":"56.12 €"},{"$f":"ROUND(J303*K303,2)","v":{"v":2806,"d":"2,806.00 €"}}]
[]
[null,"REP_HGON_TECHOS_SF",null,"0009 REPARACION HORM. DETERIORADO TECHOS SF"]
[{"$nulls":3},"Suministro y colocación de mortero de alta resistencia modificado con polímeros y fibras RENDEROC\r\r SF de FOSROC o similar, previa limpieza del soporte, humedecido, incluso aplicación de lechada\r\r NITOBOND HAR de FOSROC para mejorar la adherencia con el hormigón viejo en zonas\r\r anteriormente picadas de armaduras deterioradas, según medidas proximadas."]
[{"$nulls":3},"Previsión",{"v":1,"d":"1.00"},{"v":100,"d":"100.00"},null,null,{"v":100,"d":"100.00"}]
[{"$nulls":9},{"v":100,"d":"100.00"},{"v":36.11,"d":"36.11 €"},{"$f":"ROUND(J308*K308,2)","v":{"v":3611,"d":"3,611.00 €"}}]
[]
[null,"APLIC_SUPERF_TECMADR",null,"0009 APLICACION SUPERFICIAL TECMADRY"]
[{"$nulls":3},"Impermeabilizante hidráulico de base cementosa para la prevención y eliminación de humedades ,\r\r evitando el paso del agua actuando a favor de presión de agua o a contra presión, con adherencia física y química al soporte, mediante TECMADRY de SATECMA, con REGISTRO SANITARIO nº\r\r 39.01224/M-02379 reconocida por el Instituto de Ciencias de la Construcción Eduardo Torroja, según\r\r D.IT nº 262, aplicando dos manos, en todo el techo, pilares, lineas de flotación de paredes, medida la superficie ejecutada."]
[{"$nulls":3},"Previsión",{"v":1,"d":"1.00"},{"v":250,"d":"250.00"},null,null,{"v":250,"d":"250.00"}]
[{"$nulls":9},{"v":250,"d":"250.00"},{"v":19.44,"d":"19.44 €"},{"$f":"ROUND(J313*K313,2)","v":{"v":4860,"d":"4,860.00 €"}}]
[]
[null,"REP_FIS_LONG_FILTRAC",null,"0005 REPAR. FISURAS LONGITUDI. Y FILTRACIONES"]
[{"$nulls":3},"Reparación de fisuras horizontales y filtraciones en muros de contención, picando la zona\r\r deteriorada, obturación de vías de agua mediante PROQUICK de SATECMA, incluso relleno de fisuras\r\r mediante RENDEROC SF y dos manos de pintura en fisuras mediante TECMADRY de SATECMA,\r\r\r\r\nmedida la unidad terminada."]
[{"$nulls":4},{"v":1,"d":"1.00"},{"$nulls":3},{"v":1,"d":"1.00"}]
[{"$nulls":9},{"v":1,"d":"1.00"},{"v":1000.39,"d":"1,000.39 €"},{"$f":"ROUND(J318*K318,2)","v":{"v":1000.39,"d":"1,000.39 €"}}]
[]
[{"$nulls":3},"TOTAL REHABILITACIÓN ESTRUCTURAL DE DEPÓSITOS",{"$nulls":7},{"$f":"L277+L282+L288+L293+L298+L303+L308+L313+L318","v":{"v":20859.19,"d":"20,859.19 €"}}]
[]
[{"$nulls":3},"GEST. RESIDUOS CONSTRUCCIÓN Y DEMOLICIÓN"]
[]
[null,"LER_170101_HGON",null,"0006 RESIDUO CÓD. LER 17.01.01 HORMIGÓN"]
[{"$nulls":3},"Coste de gestión de Tn de Residuo con CÓDIGO LER 17.01.01 HORMIGÓN (Orden MAM/304/2002) tratada en planta por gestor autorizado por el Departamento de Medio Ambiente de la CAPV, de acuerdo con el Decreto 112/2012 de, 26 de junio, recogidas en contenedores de distintos formatos. Incluye costes administrativos y documentación justificativa de IKS eem según Decreto 183/2012, de 25 de septiembre (DSC, Documentos de Seguimiento y Control), así como otros certificados."]
[{"$nulls":4},{"v":1,"d":"1.00"},29.25,null,null,29.25]
[{"$nulls":9},29.25,{"v":8,"d":"8.00 €"},{"$f":"ROUND(J327*K327,2)","v":{"v":234,"d":"234.00 €"}}]
[]
[null,"LER_170103_MAT CERAM",null,"0006 RESIDUO CÓD. LER 17.01.03 TEJAS Y MATERI"]
[{"$nulls":3},"Coste de gestión de Tn de Residuo con CÓDIGO LER 17.01.03 TEJAS Y MATERIALES CERAMICOS (Orden MAM/304/2002) tratada en planta por gestor autorizado por el Departamento de Medio Ambiente de la CAPV, de acuerdo con el Decreto 112/2012 de, 26 de junio, recogidas en contenedores de distintos formatos. Incluye costes administrativos y documentación justificativa de IKS eem según Decreto 183/2012, de 25 de septiembre (DSC, Documentos de Seguimiento y Control), así como otros certificados."]
[{"$nulls":4},{"v":1,"d":"1.00"},3.26,null,null,3.26]
[{"$nulls":9},3.26,{"v":8,"d":"8.00 €"},{"$f":"ROUND(J332*K332,2)","v":{"v":26.08,"d":"26.08 €"}}]
[]
[null,"LER_170201_MAD_LIMP",null,"0006 RESIDUO CÓD. LER 17.02.01 MADERA LIMPIA"]
[{"$nulls":3},"Coste de gestión de Tn de Residuo con CÓDIGO LER 17.02.01 MADERA LIMPIA O NATURAL SIN TRATAMIENTOS (Orden MAM/304/2002) tratada en planta por gestor autorizado por el Departamento de Medio Ambiente de la CAPV, de acuerdo con el Decreto 112/2012 de, 26 de junio, recogidas en contenedores de distintos formatos. Incluye costes administrativos y documentación justificativa de IKS eem según Decreto 183/2012, de 25 de septiembre (DSC, Documentos de Seguimiento y Control), así como otros certificados."]
[{"$nulls":4},{"v":1,"d":"1.00"},0.33,null,null,0.33]
[{"$nulls":9},0.33,{"v":20,"d":"20.00 €"},{"$f":"ROUND(J337*K337,2)","v":{"v":6.6,"d":"6.60 €"}}]
[]
[null,"LER_170202_VIDRIO",null,"0006 RESIDUO CÓD. LER 17.02.02 VIDRIO"]
[{"$nulls":3},"Coste de gestión de Tn de Residuo con CÓDIGO LER 17.02.02 VIDRIO (Orden MAM/304/2002) tratada en planta por gestor autorizado por el Departamento de Medio Ambiente de la CAPV, de acuerdo con el Decreto 112/2012 de, 26 de junio, recogidas en contenedores de distintos formatos. Incluye costes administrativos y documentación justificativa de IKS eem según Decreto 183/2012, de 25 de septiembre (DSC, Documentos de Seguimiento y Control), así como otros certificados."]
[{"$nulls":4},{"v":1,"d":"1.00"},0.04,null,null,0.04]
[{"$nulls":9},0.04,{"v":45,"d":"45.00 €"},{"$f":"ROUND(J342*K342,2)","v":{"v":1.8,"d":"1.80 €"}}]
[]
[null,"LER_170203_PLASTICO",null,"0006 RESIDUO CÓD. LER 17.02.03 PLÁSTICO"]
[{"$nulls":3},"Coste de gestión de Tn de Residuo con CÓDIGO LER 17.02.03 PLÁSTICO (Orden MAM/304/2002) tratada en planta por gestor autorizado por el Departamento de Medio Ambiente de la CAPV, de acuerdo con el Decreto 112/2012 de, 26 de junio, recogidas en contenedores de distintos formatos. Incluye costes administrativos y documentación justificativa de IKS eem según Decreto 183/2012, de 25 de septiembre (DSC, Documentos de Seguimiento y Control), así como otros certificados."]
[{"$nulls":4},{"v":1,"d":"1.00"},0.05,null,null,0.05]
[{"$nulls":9},0.05,{"v":26,"d":"26.00 €"},{"$f":"ROUND(J347*K347,2)","v":{"v":1.3,"d":"1.30 €"}}]
[]
[null,"LER_170407_MET_MEZ",null,"0006 RESIDUO CÓD. LER 17.04.07 METALES MEZCLA"]
[{"$nulls":3},"Coste de gestión de Tn de Residuo con CÓDIGO LER 17.04.07 METAÑES MEZCLADOS (Orden MAM/304/2002) tratada en planta por gestor autorizado por el Departamento de Medio Ambiente de la CAPV, de acuerdo con el Decreto 112/2012 de, 26 de junio, recogidas en contenedores de distintos formatos. Incluye costes administrativos y documentación justificativa de IKS eem según Decreto 183/2012, de 25 de septiembre (DSC, Documentos de Seguimiento y Control), así como otros certificados."]
[{"$nulls":4},{"v":1,"d":"1.00"},3.26,null,null,3.26]
[{"$nulls":9},3.26,{"v":0,"d":"0.00 €"},{"$f":"ROUND(J352*K352,2)","v":{"v":0,"d":"0.00 €"}}]
[]
[null,"LER_150504_TIER_NO C",null,"0006 RESIDUO CÓD. LER 17.05.04 TIER_ROC N CON"]
[{"$nulls":3},"Coste de gestión de Tn de Residuo con CÓDIGO LER 17.05.04 TIERRAS Y ROCAS NO CONTAMINADAS (Orden MAM/304/2002) tratada en planta por gestor autorizado por el Departamento de Medio Ambiente de la CAPV, de acuerdo con el Decreto 112/2012 de, 26 de junio, recogidas en contenedores de distintos formatos. Incluye costes administrativos y documentación justificativa de IKS eem según Decreto 183/2012, de 25 de septiembre (DSC, Documentos de Seguimiento y Control), así como otros certificados."]
[{"$nulls":4},{"v":1,"d":"1.00"},54.32,null,null,54.32]
[{"$nulls":9},54.32,{"v":8,"d":"8.00 €"},{"$f":"ROUND(J357*K357,2)","v":{"v":434.56,"d":"434.56 €"}}]
[]
[null,"LER_170904_RES_MEZ",null,"0006 RESIDUO CÓD. LER 17.09.04 RESIDUOS MEZCL"]
[{"$nulls":3},"Coste de gestión de Tn de Residuo CÓDIGO LER 17.09.04 RESIDUOS MEZCLADOS DE CONSTRUCCIÓN Y DEMOLICIÓN DISTINTOS DE LOS ESPECIFICADOS EN LOS CÓDIGOS 17.09.02 Y 17.09.03 (Orden MAM/304/2002) tratada en planta por gestor autorizado por el Departamento de Medio Ambiente de la CAPV, de acuerdo con el Decreto 112/2012 de, 26 de junio, recogidas en contenedores de distintos formatos. Incluye costes administrativos y documentación justificativa de IKS eem según Decreto 183/2012, de 25 de septiembre (DSC, Documentos de Seguimiento y Control), así como otros certificados."]
[{"$nulls":4},{"v":1,"d":"1.00"},4.35,null,null,4.35]
[{"$nulls":9},4.35,{"v":12,"d":"12.00 €"},{"$f":"ROUND(J362*K362,2)","v":{"v":52.2,"d":"52.20 €"}}]
[]
[null,"LER_030308_PAP_CART",null,"0006 RESIDUO CÓD. LER 03.03.08 PAPEL-CARTÓN"]
[{"$nulls":3},"Coste de gestión de Tn de Residuo con CÓDIGO LER 03.03.08 PAPEL-CARTÓN (Orden MAM/304/2002) tratada en planta por gestor autorizado por el Departamento de Medio Ambiente de la CAPV, de acuerdo con el Decreto 112/2012 de, 26 de junio, recogidas en contenedores de distintos formatos. Incluye costes administrativos y documentación justificativa de IKS eem según Decreto 183/2012, de 25 de septiembre (DSC, Documentos de Seguimiento y Control), así como otros certificados."]
[{"$nulls":4},{"v":1,"d":"1.00"},0.05,null,null,0.05]
[{"$nulls":9},0.05,{"v":14,"d":"14.00 €"},{"$f":"ROUND(J367*K367,2)","v":{"v":0.7,"d":"0.70 €"}}]
[]
[null,"LER_200301_BASUR",null,"0006 RESIDUO CÓD. LER 20.03.01 BASURAS OPER."]
[{"$nulls":3},"Coste de gestión de Tn de Residuo LER 20.03.01 BASURAS GENERADAS POR LOS OPERARIOS  (Orden MAM/304/2002) tratada en planta por gestor autorizado por el Departamento de Medio Ambiente de la CAPV, de acuerdo con el Decreto 112/2012 de, 26 de junio, recogidas en contenedores de distintos formatos. Incluye costes administrativos y documentación justificativa de IKS eem según Decreto 183/2012, de 25 de septiembre (DSC, Documentos de Seguimiento y Control), así como otros certificados."]
[{"$nulls":4},{"v":1,"d":"1.00"},{"v":0.1,"d":"0.10"},null,null,{"v":0.1,"d":"0.10"}]
[{"$nulls":9},{"v":0.1,"d":"0.10"},{"v":66,"d":"66.00 €"},{"$f":"ROUND(J372*K372,2)","v":{"v":6.6,"d":"6.60 €"}}]
[]
[null,"LER_170903*_OTR",null,"0006 RESIDUO CÓD. LER 17.09.03* OTROS RCD_SP"]
[{"$nulls":3},"Coste de gestión de Tn de Residuo con CÓDIGO LER 17.09.03* OTROS RESIDUOS DE CONSTRUCCIÓN Y DEMOLICIÓN (INCLUIDOS LOS RESIDUOS MEZCLADOS) QUE CONTIENEN SUSTANCIAS PELIGROSAS (Orden MAM/304/2002) tratada en planta por gestor autorizado por el Departamento de Medio Ambiente de la CAPV, de acuerdo con el Decreto 112/2012 de, 26 de junio, recogidas en contenedores de distintos formatos, propios para RP. Incluye costes administrativos y documentación justificativa de IKS eem según Decreto 183/2012, de 25 de septiembre (DCS, Documentos de Control y Seguimiento), así como otros certificados."]
[{"$nulls":4},{"v":1,"d":"1.00"},0.05,null,null,0.05]
[{"$nulls":9},0.05,{"v":330,"d":"330.00 €"},{"$f":"ROUND(J377*K377,2)","v":{"v":16.5,"d":"16.50 €"}}]
[]
[null,"LER_170603_170605",null,"0006 RESIDUO CÓD. LER 17.06.03* Y 17.06.05 MA"]
[{"$nulls":3},"Coste de gestión de Tn de Residuo con CÓDIGO LER 17.06.03* Y 17.06.05 MATERIALES DE CONSTRUCCIÓN QUE CONTIENEN AMIANTO (Orden MAM/304/2002) tratada en planta por gestor autorizado por el Departamento de Medio Ambiente de la CAPV, de acuerdo con el Decreto 112/2012 de, 26 de junio, recogidas en contenedores de distintos formatos, propios para RP. Incluye costes administrativos y documentación justificativa de IKS según Decreto 183/2012, de 25 de septiembre (DCS, Documentos de Control y Seguimiento), así como otros certificados."]
[{"$nulls":4},{"v":1,"d":"1.00"},1.29,null,null,1.29]
[{"$nulls":9},1.29,{"v":330,"d":"330.00 €"},{"$f":"ROUND(J382*K382,2)","v":{"v":425.7,"d":"425.70 €"}}]
[]
[{"$nulls":3},"TOTAL GEST. RESIDUOS CONSTRUCCIÓN Y DEMOLICIÓN",{"$nulls":7},{"$f":"L327+L332+L337+L342+L347+L352+L357+L362+L367+L372+L377+L382","v":{"v":1206.0400000000002,"d":"1,206.04 €"}}]
[]
[{"$nulls":3},"PARTIDAS ESPECIFICAS DEL PROYECTO"]
[]
[null,"PA1",null,"UN COLECTORES INOX SALIDA DEPOSITO"]
[{"$nulls":3},"Ud de conjunto de calderería INOX 304 L para salida abastecimiento según planos y constituido por suministro y montaje de piezas/tubos Ø200 para:\r\n - 2 válvula compuerta de asiento elástico, Ø 200 PN16\r\n - 2 brida enchufe universal Ø200 PN16\r\n - 6 mts de tubo y piecerío con pasamuros incluido, en AISI 304 L, espesor de 3 mm.\r\nincluso conformado, reducciones, soportes, abarcones, bridas, soldaduras, juntas, tornillos y tuercas inox. Completamente instalado y comprobado.\r\n"]
[{"$nulls":4},{"v":1,"d":"1.00"},{"$nulls":3},{"v":1,"d":"1.00"}]
[{"$nulls":9},{"v":1,"d":"1.00"},{"v":4026,"d":"4,026.00 €"},{"$f":"ROUND(J391*K391,2)","v":{"v":4026,"d":"4,026.00 €"}}]
[]
[null,"PA10",null,"M RETIRADA Y TRANSPORTE TUBERIA FC DN 200"]
[{"$nulls":3},"Retirada de la zanja, manipulación, gestión en obra, acopio y transporte a gestor autorizado de tubería de fibrocemento Ø 200 mm., según el correspondiente Plan de Desamiantado."]
[{"$nulls":4},{"v":1,"d":"1.00"},{"v":18,"d":"18.00"},null,null,{"v":18,"d":"18.00"}]
[{"$nulls":9},{"v":18,"d":"18.00"},{"v":36,"d":"36.00 €"},{"$f":"ROUND(J396*K396,2)","v":{"v":648,"d":"648.00 €"}}]
[]
[null,"PA11",null,"UN RETIRADA Y GESTION DEL FC EN DEPOSITO"]
[{"$nulls":3},"Retirada y gestión del fibrocemento en cámara de llaves, según las indicaciones del correspondiente Plan de Desamiantado"]
[{"$nulls":4},{"v":1,"d":"1.00"},{"$nulls":3},{"v":1,"d":"1.00"}]
[{"$nulls":9},{"v":1,"d":"1.00"},{"v":1800,"d":"1,800.00 €"},{"$f":"ROUND(J401*K401,2)","v":{"v":1800,"d":"1,800.00 €"}}]
[]
[null,"PA12",null,"UN REMATES OBRA CIVIL Y ALBAÑILERIA"]
[{"$nulls":3},"Partida alzada a justificar para  ayudas de albañilería, mejoras y pequeños remates de obra civil incluso regularización mediante mortero de superficies demolidas, sellado de huecos en pasamuros anulados, juntas, etc."]
[{"$nulls":4},{"v":1,"d":"1.00"},{"$nulls":3},{"v":1,"d":"1.00"}]
[{"$nulls":9},{"v":1,"d":"1.00"},{"v":3000,"d":"3,000.00 €"},{"$f":"ROUND(J406*K406,2)","v":{"v":3000,"d":"3,000.00 €"}}]
[]
[null,"PA13",null,"UN TORRE ANDAMIO EN INTERIOR DEPOSITO"]
[{"$nulls":3},"Alquiler, portes, montaje, desmontaje de torre de andamio con ruedas, escalera interior, barandillas, etc medida la unidad terminada. De aplicación en rehabilitaciones no integrales de interior de depósitos."]
[{"$nulls":4},{"v":1,"d":"1.00"},{"$nulls":3},{"v":1,"d":"1.00"}]
[{"$nulls":9},{"v":1,"d":"1.00"},{"v":495,"d":"495.00 €"},{"$f":"ROUND(J411*K411,2)","v":{"v":495,"d":"495.00 €"}}]
[]
[null,"PA14",null,"M CIERRE DE FINCAS"]
[{"$nulls":3},"Formación de cierre mediante estacas de madera tratada y malla de alambre galvanizada."]
[{"$nulls":3},"Deposito",{"v":1,"d":"1.00"},{"v":34,"d":"34.00"},null,null,{"v":34,"d":"34.00"}]
[{"$nulls":9},{"v":34,"d":"34.00"},{"v":21.83,"d":"21.83 €"},{"$f":"ROUND(J416*K416,2)","v":{"v":742.22,"d":"742.22 €"}}]
[]
[null,"PA15",null,"UN PATE DE ACCESO"]
[{"$nulls":3},"Pate de polipropileno reforzado con redondo de 12 mm. de diámetro, B-400, incluso colocación s/ planos, nivelación, aplomado y recibido con resina epoxi."]
[{"$nulls":4},{"v":2,"d":"2.00"},{"v":10,"d":"10.00"},null,null,{"v":20,"d":"20.00"}]
[{"$nulls":9},{"v":20,"d":"20.00"},{"v":18.5,"d":"18.50 €"},{"$f":"ROUND(J421*K421,2)","v":{"v":370,"d":"370.00 €"}}]
[]
[null,"PA16",null,"UN ELECTRICIDAD E ILUMINACIÓN"]
[{"$nulls":3},"Partida alzada a justificar para modificación de cota de los cuadros existentes y mejora en iluminación del depósito mediante luminaria en cámara de llaves y antorchas LED en senos, incluso canalización de superficie, cableado, conexiónes, protecciones, etc, completamente terminado."]
[{"$nulls":4},{"v":1,"d":"1.00"},{"$nulls":3},{"v":1,"d":"1.00"}]
[{"$nulls":9},{"v":1,"d":"1.00"},{"v":2500,"d":"2,500.00 €"},{"$f":"ROUND(J426*K426,2)","v":{"v":2500,"d":"2,500.00 €"}}]
[]
[null,"PA2",null,"UN CALDERERIA INOX REBOSE-VACIADO"]
[{"$nulls":3},"Ud de conjunto de calderería INOX 304 L para rebose y vaciado, según planos y constituido por suministro y montaje de piezas/tubos Ø150 para:\r\n - 2 válvula compuerta de asiento elástico, Ø 150 PN16\r\n - 2 carretes de desmontaje inox, Ø 150 PN16\r\n - 2 brida enchufe universal Ø150 PN16\r\n - 16 mts de tubo y piecerío con pasamuros incluido, en AISI 304 L, espesor de 3 mm.\r\nincluso conformado, reducciones, soportes, abarcones, bridas, soldaduras, juntas, tornillos y tuercas inox. Completamente terminado y probado.\r\n"]
[{"$nulls":4},{"v":1,"d":"1.00"},{"$nulls":3},{"v":1,"d":"1.00"}]
[{"$nulls":9},{"v":1,"d":"1.00"},{"v":4948,"d":"4,948.00 €"},{"$f":"ROUND(J431*K431,2)","v":{"v":4948,"d":"4,948.00 €"}}]
[]
[null,"PA3",null,"UN CALDERERIA INOX EN CAUDALIMETRO"]
[{"$nulls":3},"Ud de conjunto de calderería INOX 304 L en caudalímetro de salida, según  planos y constituido por suministro y montaje de piezas/tubos Ø125 para:\r\n - 1 caudalímetro electromagnético, Ø 125 PN16 (suministrado por GUSA)\r\n - 1 carrete de desmontaje inox, Ø 125 PN16\r\n - 5 mts de tubo y piecerío con pasamuros incluido, en AISI 304 L, espesor de 3 mm.\r\n - 1 ventosa natural con tubo AISI 304 Ø 50 (3,5 mts) y caperuza protectora\r\nincluso conformado, reducciones, soportes, abarcones, bridas, soldaduras, juntas, tornillos y\r\ntuercas inox. Completamente instalado y comprobado.\r\n"]
[{"$nulls":4},{"v":1,"d":"1.00"},{"$nulls":3},{"v":1,"d":"1.00"}]
[{"$nulls":9},{"v":1,"d":"1.00"},{"v":955,"d":"955.00 €"},{"$f":"ROUND(J436*K436,2)","v":{"v":955,"d":"955.00 €"}}]
[]
[null,"PA4",null,"M BARANDILLA ACERO GALVANIZADO"]
[{"$nulls":3},"Suministro y colocación de barandilla de acero galvanizado, incluso parte proporcional de soportes, anclaje, tornillería y medios auxiliares para la instalación. Completamente terminado."]
[{"$nulls":4},{"v":1,"d":"1.00"},{"v":5.4,"d":"5.40"},null,null,{"v":5.4,"d":"5.40"}]
[{"$nulls":9},{"v":5.4,"d":"5.40"},{"v":148,"d":"148.00 €"},{"$f":"ROUND(J441*K441,2)","v":{"v":799.2,"d":"799.20 €"}}]
[]
[null,"PA5",null,"M2 TRAMEX CAMARA DE LLAVES"]
[{"$nulls":3},"Suministro y colocación de tramex galvanizado desmontable para piso, en parilla cuadrada de 30 x 30 mm.,con pletina de canto de 3 mm. de sección, incluso replanteo, cercos y marcos fijados a estructura, recortes para paso de conducciones, completamente terminado."]
[{"$nulls":4},{"v":17,"d":"17.00"},{"$nulls":3},{"v":17,"d":"17.00"}]
[{"$nulls":9},{"v":17,"d":"17.00"},{"v":159,"d":"159.00 €"},{"$f":"ROUND(J446*K446,2)","v":{"v":2703,"d":"2,703.00 €"}}]
[]
[null,"PA6",null,"UN ESCALERA ACERO GALVANIZADO"]
[{"$nulls":3},"Suministro y colocación de escalera de acceso en cámara de llaves, en acero galvanizado, según modelo en planos, incluidos cortes, doblados, soldaduras y parte proporcional de anclajes y soportación. Completamente terminado."]
[{"$nulls":4},{"v":1,"d":"1.00"},{"$nulls":3},{"v":1,"d":"1.00"}]
[{"$nulls":9},{"v":1,"d":"1.00"},{"v":1467,"d":"1,467.00 €"},{"$f":"ROUND(J451*K451,2)","v":{"v":1467,"d":"1,467.00 €"}}]
[]
[null,"PA7",null,"UN PUERTA DE ACCESO"]
[{"$nulls":3},"Suministro y colocación de puerta de dimensiones aproximadas 0,90 x 2,2 de altura, formada por perfiles de aleación de aluminio de espesor medio 1,5 mm., lacado superficial de 15 micras, incluso colocación, premarco, anclaje, ampliación de hueco en muro de hormigón, ayudas de albañilería y anclajes."]
[{"$nulls":4},{"v":1,"d":"1.00"},{"$nulls":3},{"v":1,"d":"1.00"}]
[{"$nulls":9},{"v":1,"d":"1.00"},{"v":596,"d":"596.00 €"},{"$f":"ROUND(J456*K456,2)","v":{"v":596,"d":"596.00 €"}}]
[]
[null,"PA9",null,"UN REJILLA AIREACION"]
[{"$nulls":3},"Suministro y colocación de rejilla de aireación galvanizada y pintada epoxi, de dimensiones aproximadas 1,10 x 0,60 mts., con mosquitera inox. Incluso marco de sujección, retirada de las existentes y ayudas de albañilería, completamente terminado."]
[{"$nulls":4},{"v":9,"d":"9.00"},{"$nulls":3},{"v":9,"d":"9.00"}]
[{"$nulls":9},{"v":9,"d":"9.00"},{"v":345,"d":"345.00 €"},{"$f":"ROUND(J461*K461,2)","v":{"v":3105,"d":"3,105.00 €"}}]
[]
[null,"SEÑyDESV",null,"UN SEÑALIZACION Y DESVIOS"]
[{"$nulls":3},"Partida Alzada destinada a la señalización y desvíos de tráfico peatonal y de vehículos para la ejecución de las obras, según directrices marcadas por la dirección de obra y Policía"]
[{"$nulls":4},{"v":1,"d":"1.00"},{"$nulls":3},{"v":1,"d":"1.00"}]
[{"$nulls":9},{"v":1,"d":"1.00"},{"v":375,"d":"375.00 €"},{"$f":"ROUND(J466*K466,2)","v":{"v":375,"d":"375.00 €"}}]
[]
[null,"SyS",null,"UN CUMPLIMIENTO SEGURIDAD Y SALUD"]
[{"$nulls":3},"Partida alzada destinada al cumplimiento de las medidas de seguridad establecidas en el correspondiente Plan de Seguridad y Salud aprobado, o en su defecto, el Documento de Gestión Preventiva."]
[{"$nulls":4},{"v":1,"d":"1.00"},{"$nulls":3},{"v":1,"d":"1.00"}]
[{"$nulls":9},{"v":1,"d":"1.00"},{"v":1875,"d":"1,875.00 €"},{"$f":"ROUND(J471*K471,2)","v":{"v":1875,"d":"1,875.00 €"}}]
[]
[{"$nulls":3},"TOTAL PARTIDAS ESPECIFICAS DEL PROYECTO",{"$nulls":7},{"$f":"L391+L396+L401+L406+L411+L416+L421+L426+L431+L436+L441+L446+L451+L456+L461+L466+L471","v":{"v":30404.420000000002,"d":"30,404.42 €"}}]
[]
[{"$nulls":3},"TOTAL BLOQUE ...................................................................................",{"$nulls":7},{"$f":"L71+L94+L221+L250+L270+L320+L384+L473","v":{"v":69926.59,"d":"69,926.59 €"}}]
[]
[]
[{"$nulls":3},"TOTAL PRESUPUESTO .................................................................................",{"$nulls":7},{"$f":"SUM(L475)","v":{"v":69926.59,"d":"69,926.59 €"}}]

{"sheet":"resumen de presupuesto","index":1,"n_rows":24,"n_cols":10,"rows_kept":24,"merged":[[6,2,6,9],[20,5,20,7],[22,4,22,5],[23,5,23,7]]}
[]
[]
[]
[{"$nulls":3},"RESUMEN DE PRESUPUESTO"]
[]
[]
[null,"OBRA:","BOLIBAR IRTEERA HODI ETA SEKTORIALA BERR"]
[]
[]
[null,"CAPÍTULO","RESUMEN",{"$nulls":5},"EUROS","%"]
[]
[]
[null,1,"MOVIMIENTO DE TIERRAS Y DEMOLICIONES",{"$nulls":5},{"v":7434.548,"d":"7,434.55 €"},{"v":0.11,"d":"11.00%"}]
[null,2,"SANEAMIENTO",{"$nulls":5},{"v":1379.01,"d":"1,379.01 €"},{"v":0.02,"d":"2.00%"}]
[null,3,"ABASTECIMIENTO",{"$nulls":5},{"v":3875.22,"d":"3,875.22 €"},{"v":0.06,"d":"6.00%"}]
[null,4,"ARQUETAS",{"$nulls":5},{"v":3538.44,"d":"3,538.44 €"},{"v":0.05,"d":"5.00%"}]
[null,5,"PAVIMENTACION Y URBANIZACION",{"$nulls":5},{"v":1229.7168,"d":"1,229.72 €"},{"v":0.02,"d":"2.00%"}]
[null,6,"REHABILITACIÓN ESTRUCTURAL DE DEPÓSITOS",{"$nulls":5},{"v":20859.19,"d":"20,859.19 €"},{"v":0.3,"d":"30.00%"}]
[null,7,"GEST. RESIDUOS CONSTRUCCIÓN Y DEMOLICIÓN",{"$nulls":5},{"v":1206.04,"d":"1,206.04 €"},{"v":0.02,"d":"2.00%"}]
[null,19,"PARTIDAS ESPECIFICAS DEL PROYECTO",{"$nulls":5},{"v":30404.42,"d":"30,404.42 €"},{"v":0.43,"d":"43.00%"}]
[{"$nulls":5},"TOTAL EJECUCIÓN MATERIAL",null,null,{"$f":"SUM(I10:I20)","v":{"v":69926.5848,"d":"69,926.58 €"}}]
[]
[{"$nulls":4},"21,00% I.V.A.",{"$nulls":3},{"v":14684.58,"d":"14,684.58 €"}]
[{"$nulls":5},"TOTAL PRESUPUESTO GENERAL",null,null,{"v":84611.16760799999,"d":"84,611.17 €"}]

{"sheet":"Estilos","index":2,"n_rows":0,"n_cols":0,"rows_kept":0,"hidden":true}